bitfinex/quotes_ETHUSD_20240811
["timestamp","ask_amount","ask_price","bid_price","bid_amount"]
[1723396706351,5.23061,2626.8,2626.4,0.08874378]
[1723396708123,5.23061,2626.8,2626.2,2.66542]
[1723396708428,5.23061,2626.8,2626.5,0.08865742]
[1723396708638,6.020147,2626.8,2626.2,2.66542]
[1723396708809,2.66458,2627.1,2626.6,2.75359107]
[1723396709009,10.4836782,2627.6,2626.6,2.75359107]
[1723396709010,2.66417,2627.5,2626.7,0.07613453]
[1723396709224,2.66449,2627.2,2626.7,2.75335473]
[1723396709448,2.66449,2627.2,2626.7,0.08848473]
[1723396709744,2.66456,2627.1,2626.7,0.08848473]
[1723396709923,2.66472,2627.0,2626.4,2.66521]
[1723396710124,2.66472,2627.0,2626.8,0.08873128]
[1723396710125,2.66474,2626.9,2626.8,0.08873128]
[1723396710453,2.66474,2626.9,2626.4,3.0]
[1723396710754,2.66474,2626.9,2626.5,0.0889903]
[1723396711115,5.28864,2627.0,2626.5,0.0889903]
[1723396711116,5.28864,2627.0,2626.5,0.08823729]
[1723396711447,1.04436182,2627.5,2626.7,2.66487]
[1723396711647,1.04436182,2627.5,2626.8,2.5139]
[1723396711851,1.04436182,2627.5,2626.8,5.26718923]
[1723396712214,2.66433,2627.3,2626.8,2.60243923]
[1723396713452,3.70854182,2627.5,2626.8,2.67857011]
[1723396713657,2.66418,2627.5,2626.9,2.66468]
[1723396714071,5.32837,2627.5,2627.0,0.08829874]
[1723396714246,5.32838,2627.5,2627.0,0.08829874]
[1723396716908,5.32837,2627.5,2627.0,0.08829874]
[1723396717487,2.66425,2627.4,2627.0,0.08829874]
[1723396717780,2.66418,2627.5,2627.0,2.75290874]
[1723396718186,7.8196182,2627.6,2627.0,2.75290874]
[1723396718187,7.27,2627.6,2627.3,2.66432]
[1723396718352,2.66378,2627.9,2627.4,2.66421]
[1723396718686,2.66378,2627.9,2627.4,2.75216351]
[1723396719184,19.55,2628.0,2627.5,2.66405]
[1723396719428,2.66338,2628.3,2627.7,2.66386]
[1723396719563,2.66352,2628.1,2627.5,3.27433844]
[1723396719896,2.66393,2627.7,2627.3,2.5139]
[1723396720059,2.66393,2627.7,2627.2,2.66436]
[1723396720264,2.66393,2627.7,2627.2,3.83405261]
[1723396720479,2.66392,2627.8,2627.3,2.6643]
[1723396720788,2.66392,2627.8,2627.3,2.66427]
[1723396721158,2.66387,2627.8,2627.3,2.66426]
[1723396721769,2.66378,2627.9,2627.3,2.66426]
[1723396721968,2.66383,2627.8,2627.3,2.66426]
[1723396723176,2.66398,2627.7,2627.2,2.66439]
[1723396723951,5.32772,2627.8,2627.2,2.66439]
[1723396724302,3.5118789,2627.8,2627.2,2.66437]
[1723396724506,2.66398,2627.7,2627.2,2.66437]
[1723396725376,3.5118789,2627.8,2627.1,2.5139]
[1723396725377,2.66403,2627.6,2627.1,2.5139]
[1723396725597,2.66392,2627.7,2627.1,2.5139]
[1723396725803,2.66392,2627.7,2627.2,2.66437]
[1723396727111,2.66403,2627.6,2627.2,2.66437]
[1723396727414,2.66392,2627.7,2627.2,2.66437]
[1723396727868,5.32792,2627.7,2627.2,2.66437]
[1723396728070,6.67251689,2627.7,2627.2,2.66437]
[1723396728473,4.00851689,2627.7,2627.2,2.66437]
[1723396730422,4.00851689,2627.7,2627.1,2.5139]
[1723396730423,4.00851689,2627.7,2627.1,5.17843]
[1723396730573,2.66392,2627.7,2627.2,2.66438]
[1723396730779,9.93376,2627.9,2627.4,2.66414]
[1723396730981,7.27,2627.9,2627.6,2.66401]
[1723396731486,7.27,2627.9,2627.5,5.22582845]
[1723396731670,2.66362,2628.0,2627.5,5.22582845]
[1723396732108,2.66362,2628.0,2626.5,7.86546193]
[1723396732109,2.955817,2628.0,2627.3,2.4856]
[1723396732336,2.66398,2627.7,2627.3,2.4856]
[1723396733809,2.66398,2627.7,2627.3,5.14993]
[1723396735046,2.66382,2627.8,2627.3,5.14993]
[1723396736028,5.0868,2628.0,2627.4,2.75175665]
[1723396736228,2.66373,2627.9,2627.4,5.41592665]
[1723396736428,2.66373,2627.9,2627.4,2.75175665]
[1723396736649,2.66373,2627.9,2627.4,5.41593665]
[1723396736846,2.66373,2627.9,2627.4,2.75175665]
[1723396737448,2.66382,2627.8,2627.4,0.08758665]
[1723396738239,9.93352,2628.1,2627.4,0.87777432]
[1723396738571,7.27,2628.1,2627.7,2.66391]
[1723396738925,7.27,2628.1,2627.8,0.0872477]
[1723396739127,7.27,2628.1,2627.7,2.66391]
[1723396739357,7.27,2628.1,2627.8,0.0872477]
[1723396739553,7.27,2628.1,2627.7,2.66391]
[1723396739742,7.27,2628.1,2627.9,0.08716144]
[1723396739923,2.66346,2628.2,2627.9,0.08716144]
[1723396740153,2.66352,2628.1,2627.6,2.66402]
[1723396740339,2.66352,2628.1,2628.0,0.08707518]
[1723396740552,2.66352,2628.1,2627.5,5.32811]
[1723396740761,2.66352,2628.1,2628.0,0.08707518]
[1723396741072,0.6102015,2628.1,2627.7,2.66387]
[1723396741233,3.438415,2628.2,2627.7,5.14947]
[1723396741428,3.438415,2628.2,2627.8,0.0872477]
[1723396741633,3.438415,2628.2,2627.6,2.66401]
[1723396741634,3.0074115,2628.1,2627.6,2.66401]
[1723396742075,5.32764,2627.8,2627.7,0.08733397]
[1723396742392,2.66369,2628.0,2627.5,2.66411]
[1723396742529,5.4305615,2628.1,2627.5,2.66406]
[1723396742728,5.4305615,2628.1,2627.6,0.08575358]
[1723396742729,5.08672,2628.1,2627.6,0.08575358]
[1723396743129,2.66363,2628.0,2627.5,2.66406]
[1723396743374,0.775035,2628.0,2627.6,2.4856]
[1723396743574,2.66362,2628.1,2627.6,2.4856]
[1723396743575,2.66362,2628.1,2627.6,5.14957]
[1723396744162,5.3268,2628.3,2627.7,2.66391]
[1723396744385,2.66344,2628.2,2627.7,2.66391]
[1723396744544,3.438433,2628.2,2627.7,2.66391]
[1723396744735,2.66352,2628.1,2627.7,2.66391]
[1723396744937,2.66352,2628.1,2627.6,2.4856]
[1723396745268,2.66365,2628.0,2627.5,2.61403]
[1723396745470,2.66365,2628.0,2627.3,5.1499]
[1723396745471,2.66383,2627.8,2627.3,5.1499]
[1723396745977,2.66373,2627.9,2627.4,2.75006615]
[1723396748678,2.66373,2627.9,2627.5,2.66411]
[1723396748882,2.66373,2627.9,2627.4,2.75006615]
[1723396749033,12.59716,2628.1,2627.6,2.74977975]
[1723396749239,12.59716,2628.1,2627.6,2.66402]
[1723396749438,2.66362,2628.0,2627.4,5.32829]
[1723396749786,2.66362,2628.0,2627.4,5.32831]
[1723396750071,2.66362,2628.0,2627.5,2.74995603]
[1723396750231,3.438649,2628.0,2627.5,2.74995603]
[1723396750875,0.775029,2628.0,2627.6,2.66402]
[1723396751186,7.27,2628.4,2627.8,5.10795]
[1723396751357,2.66317,2628.5,2628.0,2.66357]
[1723396751685,2.66317,2628.5,2627.9,0.07609804]
[1723396751686,2.66332,2628.3,2627.9,0.0855071]
[1723396751844,2.66342,2628.2,2628.1,0.08533459]
[1723396752040,2.66342,2628.2,2627.3,8.38829]
[1723396752041,2.929762,2628.2,2628.0,0.08542084]
[1723396752344,2.929762,2628.2,2627.3,3.0]
[1723396752345,2.66372,2627.9,2627.4,2.66417]
[1723396752657,2.66372,2627.9,2627.5,2.66412]
[1723396754091,2.66372,2627.9,2627.4,1.077265]
[1723396754259,2.66372,2627.9,2627.3,8.10845]
[1723396754454,2.66392,2627.7,2627.2,2.66442]
[1723396754670,2.3841,2627.8,2627.1,2.4442]
[1723396754886,5.04793,2627.8,2627.3,5.32854]
[1723396755091,2.3841,2627.8,2627.3,5.32854]
[1723396755386,5.04793,2627.8,2627.3,2.66426]
[1723396755553,2.3841,2627.8,2627.3,2.66426]
[1723396755743,2.3841,2627.8,2627.4,2.66422]
[1723396755945,7.536342,2628.2,2627.7,2.66387]
[1723396756260,7.27,2628.2,2627.7,2.66387]
[1723396756459,7.27,2628.2,2627.9,2.66371]
[1723396756672,3.0,2628.8,2628.0,2.66361]
[1723396756673,12.31711,2628.6,2628.0,2.66361]
[1723396756885,1.798009,2628.6,2628.2,2.66341]
[1723396757090,2.66297,2628.7,2628.2,2.66341]
[1723396757792,5.32594,2628.7,2628.2,2.66341]
[1723396757944,2.66297,2628.7,2628.2,2.66341]
[1723396758148,2.66302,2628.6,2628.1,2.66351]
[1723396758357,3.167727,2628.6,2628.1,2.66351]
[1723396758701,3.167727,2628.6,2628.0,2.73965013]
[1723396758991,5.3263,2628.5,2628.0,2.66354]
[1723396759198,2.66324,2628.4,2627.9,5.10786]
[1723396760054,2.66324,2628.4,2628.0,2.66361]
[1723396760397,0.3167727,2628.5,2628.1,2.66344]
[1723396760567,3.167797,2628.6,2628.1,2.66344]
[1723396760894,5.830897,2628.6,2628.1,2.66344]
[1723396761194,5.830867,2628.6,2628.1,2.66344]
[1723396761381,3.167777,2628.6,2628.1,2.66344]
[1723396761695,5.830867,2628.6,2628.1,2.66344]
[1723396762087,2.66312,2628.5,2628.1,2.66344]
[1723396762256,2.66312,2628.5,2627.9,5.10792]
[1723396762451,3.167777,2628.6,2628.1,2.66347]
[1723396765198,3.167777,2628.6,2628.1,2.66346]
[1723396765977,3.167777,2628.6,2628.2,0.08505422]
[1723396766178,3.167767,2628.6,2628.2,0.08505422]
[1723396766573,7.27,2628.9,2628.5,2.66306]
[1723396766812,14.97901,2629.2,2628.7,2.66291]
[1723396767116,1.497901,2629.1,2628.7,2.66291]
[1723396767319,5.04655,2629.2,2628.7,2.66286]
[1723396767671,5.04655,2629.2,2628.8,0.08437667]
[1723396768087,5.04655,2629.2,2628.5,2.73911108]
[1723396768300,5.04655,2629.2,2628.9,0.08429047]
[1723396768301,2.66255,2629.1,2628.9,0.08429047]
[1723396768473,2.66266,2629.0,2628.4,2.4442]
[1723396768673,2.4878,2628.7,2628.1,2.4946]
[1723396768877,2.4878,2628.7,2628.3,2.66331]
[1723396769078,2.4878,2628.7,2627.8,2.66373]
[1723396769298,2.66317,2628.5,2628.0,2.66357]
[1723396771704,2.66321,2628.4,2628.0,2.66357]
[1723396772272,2.4878,2629.3,2628.3,2.66324]
[1723396772517,2.4878,2629.3,2628.5,5.32614]
[1723396772518,2.66266,2629.0,2628.5,5.32614]
[1723396772689,0.266266,2628.9,2628.5,2.66305]
[1723396773408,5.591776,2628.9,2628.4,2.6632]
[1723396773711,5.591776,2628.9,2627.9,2.66366]
[1723396773712,2.4878,2628.8,2628.2,2.6634]
[1723396773919,2.4878,2628.8,2628.3,2.66328]
[1723396774221,5.15066,2628.8,2628.2,5.32672]
[1723396774380,5.39944,2628.8,2628.2,5.32672]
[1723396774885,2.73658,2628.8,2628.4,2.66316]
[1723396775086,5.39939,2628.8,2628.3,2.66331]
[1723396775291,0.539939,2628.7,2628.3,2.66331]
[1723396775504,3.202899,2628.7,2628.2,2.66334]
[1723396775799,0.539939,2628.7,2628.4,2.66321]
[1723396776381,5.39939,2628.8,2628.4,2.66321]
[1723396777402,2.66251,2629.1,2628.4,5.15775]
[1723396777604,5.1502,2629.2,2628.7,2.6629]
[1723396778422,5.1502,2629.2,2628.6,2.66292]
[1723396778423,2.66258,2629.1,2628.6,2.66299]
[1723396778577,2.66261,2629.0,2628.6,2.66299]
[1723396779223,2.66261,2629.0,2628.4,5.15775]
[1723396779798,2.66278,2628.9,2628.4,7.8209]
[1723396779992,0.584041,2628.9,2628.5,2.6631]
[1723396780594,0.584041,2628.9,2628.4,2.66315]
[1723396780824,0.584041,2628.9,2628.4,5.32631]
[1723396780992,2.66261,2629.0,2628.5,0.08452439]
[1723396781186,0.51502,2629.1,2628.7,2.66283]
[1723396781592,0.51502,2629.1,2628.8,0.08426576]
[1723396781819,0.51502,2629.1,2628.7,2.66283]
[1723396782128,0.51502,2629.1,2628.9,0.08417956]
[1723396782315,0.51502,2629.1,2628.8,0.08426576]
[1723396782515,0.51502,2629.1,2628.7,2.66283]
[1723396782516,0.51502,2629.1,2629.0,0.08409337]
[1723396783031,0.51502,2629.1,2628.7,2.66283]
[1723396783190,0.51502,2629.1,2629.0,0.08409337]
[1723396783392,3.17753,2629.1,2628.6,2.66296]
[1723396783702,3.17753,2629.1,2629.0,0.08409337]
[1723396783911,3.17753,2629.1,2628.6,2.66296]
[1723396784114,5.15026,2629.2,2629.0,0.08409337]
[1723396784313,5.15026,2629.2,2628.7,2.6629]
[1723396784623,5.15026,2629.2,2628.8,0.08426576]
[1723396784793,5.15026,2629.2,2628.7,2.6629]
[1723396784995,5.15026,2629.2,2628.9,0.08417956]
[1723396785228,5.931512,2629.2,2628.7,2.6629]
[1723396785529,5.931512,2629.2,2629.0,0.08409337]
[1723396785728,5.15006,2629.4,2628.9,2.66265]
[1723396786022,5.15006,2629.4,2629.0,2.74647703]
[1723396788105,7.81235,2629.4,2629.0,0.08388703]
[1723396788304,5.15006,2629.4,2629.0,0.08388703]
[1723396788511,7.81234,2629.4,2629.0,0.08388703]
[1723396789406,5.15006,2629.4,2628.8,5.40162117]
[1723396789610,7.81233,2629.4,2629.1,0.08380085]
[1723396789805,2.6623,2629.3,2628.8,5.32551]
[1723396789994,2.6623,2629.3,2629.2,0.08371467]
[1723396790197,2.6623,2629.3,2628.8,6.18359217]
[1723396790198,2.6623,2629.3,2628.8,5.40158117]
[1723396790434,2.6623,2629.3,2629.2,0.08371467]
[1723396790659,2.6623,2629.3,2628.8,2.73882117]
[1723396790930,5.15,2629.4,2629.2,0.08371467]
[1723396791236,5.15,2629.4,2628.9,2.66269]
[1723396792108,7.81228,2629.4,2628.9,2.66269]
[1723396792312,5.15,2629.4,2628.9,2.66269]
[1723396793215,2.6622,2629.4,2628.9,3.195234]
[1723396793530,2.6622,2629.4,2629.0,0.08388703]
[1723396795016,5.32447,2629.4,2629.0,0.08388703]
[1723396795216,2.6622,2629.4,2629.0,0.08388703]
[1723396795420,5.32447,2629.4,2629.0,0.08388703]
[1723396795618,2.6622,2629.4,2629.0,0.08388703]
[1723396795925,5.32416,2629.6,2629.0,5.22097703]
[1723396796241,4.035386,2629.6,2629.0,5.13709]
[1723396796743,2.66218,2629.5,2629.0,5.13705]
[1723396797237,2.66211,2629.5,2629.0,5.13705]
[1723396799323,2.6622,2629.4,2629.0,5.13705]
[1723396800844,2.6622,2629.4,2629.0,2.4745]
[1723396802013,2.6622,2629.4,2629.0,5.1371]
[1723396803844,2.6622,2629.4,2629.0,2.4745]
[1723396804027,3.0657516,2629.4,2629.0,2.4745]
[1723396804346,2.66231,2629.3,2628.8,6.27624]
[1723396804641,2.66231,2629.3,2628.9,0.08197478]
[1723396805013,3.0657616,2629.4,2628.9,2.74463478]
[1723396805213,3.0657616,2629.4,2628.9,2.66266]
[1723396806426,2.66211,2629.5,2629.0,2.66257]
[1723396806621,9.9042,2629.8,2629.2,1.139]
[1723396806808,2.6617,2629.9,2629.4,3.80115]
[1723396807012,2.6617,2629.9,2629.5,2.66209]
[1723396807211,2.6617,2629.9,2629.5,2.74343074]
[1723396807856,10.0,2630.0,2629.6,1.139]
[1723396808065,10.0,2630.0,2629.8,1.139]
[1723396808556,10.0,2630.0,2629.9,2.74262461]
[1723396811318,10.0,2630.0,2629.9,5.26422461]
[1723396811514,10.0,2630.0,2629.9,6.0644243]
[1723396813254,10.0,2630.0,2629.9,3.4027343]
[1723396814059,10.0,2630.0,2629.9,6.0644243]
[1723396815263,10.0,2630.0,2629.9,3.4027343]
[1723396815434,10.0,2630.0,2629.9,6.0644243]
[1723396815950,10.0,2630.0,2629.9,3.4027343]
[1723396817158,10.0,2630.0,2629.9,6.0644243]
[1723396819867,10.0,2630.0,2629.9,8.7261143]
[1723396821029,10.0,2630.0,2629.9,11.7261143]
[1723396821226,10.0,2630.0,2629.9,14.3878043]
[1723396821470,10.0,2630.0,2629.9,14.9378043]
[1723396821832,8.32724,2630.0,2629.9,17.5994943]
[1723396822271,8.32724,2630.0,2629.9,17.99679825]
[1723396822768,8.32724,2630.0,2629.9,15.33510825]
[1723396822990,8.32724,2630.0,2629.9,12.67341825]
[1723396823136,8.32724,2630.0,2629.9,12.2761143]
[1723396823533,8.32724,2630.0,2629.9,9.0644243]
[1723396823825,8.32724,2630.0,2629.9,5.74262461]
[1723396825233,8.32724,2630.0,2629.9,2.74262461]
[1723396826409,8.32724,2630.0,2629.9,0.08093461]
[1723396826911,8.32724,2630.0,2629.9,0.07897724]
[1723396830009,8.32724,2630.0,2629.9,10.58564724]
[1723396830162,8.32724,2630.0,2629.9,9.80562196]
[1723396831709,8.32724,2630.0,2629.9,12.46731196]
[1723396832007,8.32724,2630.0,2629.9,7.28402196]
[1723396832500,8.32724,2630.0,2629.9,12.89772196]
[1723396837998,8.32724,2630.0,2629.9,1.41064196]
[1723396838197,8.32724,2630.0,2629.9,0.07897724]
[1723396838517,8.32724,2630.0,2629.5,2.66203]
[1723396838518,10.98888,2630.0,2629.5,2.66203]
[1723396838663,2.4031,2629.9,2629.5,2.66203]
[1723396841075,2.4031,2629.9,2629.6,0.07924179]
[1723396841276,2.4031,2629.9,2629.6,2.74123179]
[1723396843791,10.98883,2630.0,2629.6,0.61958397]
[1723396843792,8.32724,2630.0,2629.6,0.61958397]
[1723396844106,8.32724,2630.0,2629.8,2.66174]
[1723396844480,8.32724,2630.0,2629.9,0.07895574]
[1723396846106,8.32724,2630.0,2629.9,2.74064574]
[1723396846700,8.32724,2630.0,2629.9,0.07895574]
[1723396852291,11.834964,2630.0,2629.9,0.07895574]
[1723396852492,17.158144,2630.0,2629.9,0.07895574]
[1723396852798,17.158144,2630.0,2629.4,2.66212]
[1723396852799,2.66172,2629.9,2629.4,2.66212]
[1723396852991,2.66172,2629.9,2629.5,0.07941389]
[1723396853529,2.6618,2629.8,2629.5,0.07941389]
[1723396853823,2.6618,2629.8,2629.4,2.66218]
[1723396854032,2.6618,2629.8,2629.5,0.07941389]
[1723396854547,13.66383,2630.0,2628.9,2.38279894]
[1723396854548,7.9878,2629.0,2628.9,2.38279894]
[1723396854840,7.9878,2629.0,2627.8,0.59562614]
[1723396854841,2.66372,2627.9,2627.8,0.59562614]
[1723396855047,2.66411,2627.6,2626.9,5.0542642]
[1723396855338,2.66438,2627.3,2626.4,3.32371327]
[1723396855492,2.6646,2627.1,2627.0,0.39775039]
[1723396855692,2.6646,2627.1,2626.2,3.26137696]
[1723396855693,5.32922,2627.1,2626.2,3.26137696]
[1723396856034,2.66494,2626.7,2626.1,2.66551]
[1723396856206,2.66494,2626.7,2626.3,0.07409827]
[1723396856389,2.66494,2626.7,2626.2,0.07418463]
[1723396856588,2.66494,2626.7,2626.4,0.0740119]
[1723396856791,2.66494,2626.7,2626.3,0.07409827]
[1723396857011,2.66494,2626.7,2626.4,0.0740119]
[1723396857298,2.675,2626.6,2626.0,0.96033053]
[1723396857640,2.675,2626.6,2625.9,2.66573]
[1723396857641,5.3401,2626.6,2626.5,0.07392555]
[1723396857801,5.3401,2626.6,2625.9,2.66573]
[1723396857802,2.66514,2626.5,2626.1,0.07427101]
[1723396858126,2.675,2626.6,2625.8,4.27179532]
[1723396858127,3.475504,2626.6,2625.8,6.93764532]
[1723396858332,6.140644,2626.6,2626.2,0.07418463]
[1723396858624,2.66514,2626.5,2626.3,0.07409827]
[1723396858990,2.66514,2626.5,2626.4,0.0740119]
[1723396859284,2.66514,2626.5,2625.9,2.66575]
[1723396859491,5.406,2627.0,2626.4,0.0740119]
[1723396859492,2.675,2627.0,2626.4,0.0740119]
[1723396859725,5.3397,2627.0,2626.4,0.07614108]
[1723396859931,5.3397,2627.0,2626.5,0.07392555]
[1723396859932,5.87362,2627.0,2626.5,0.07392555]
[1723396860145,3.20897,2627.0,2626.5,0.07392555]
[1723396860443,3.20897,2627.0,2626.3,0.07613983]
[1723396860444,2.675,2627.0,2626.3,0.07613983]
[1723396860742,2.675,2627.5,2627.0,2.66459]
[1723396860903,22.53323,2628.4,2627.1,0.266459]
[1723396860904,2.675,2628.1,2627.1,0.266459]
[1723396861087,2.66409,2627.6,2627.1,0.07442831]
[1723396861488,2.66391,2627.8,2627.0,2.66456]
[1723396861692,2.66391,2627.8,2626.6,3.0]
[1723396861693,2.675,2628.1,2627.2,0.07419734]
[1723396861919,2.66348,2628.2,2627.4,2.66418]
[1723396862127,2.66358,2628.1,2627.4,2.66418]
[1723396862339,2.66314,2628.5,2627.5,0.07393845]
[1723396862489,2.66366,2628.0,2627.5,0.07393845]
[1723396862694,2.66366,2628.0,2627.2,2.66436]
[1723396862899,2.66366,2628.0,2627.6,0.07371371]
[1723396863107,2.66366,2628.0,2627.4,2.66416]
[1723396863302,2.66366,2628.0,2627.7,0.07362743]
[1723396863515,2.66366,2628.0,2627.2,2.66435]
[1723396863727,2.66366,2628.0,2627.8,0.07354116]
[1723396863889,2.66372,2627.9,2627.2,2.66435]
[1723396864102,2.66384,2627.8,2627.0,5.66458]
[1723396864335,2.66398,2627.7,2627.0,5.66458]
[1723396864628,5.32774,2627.8,2627.1,2.66453]
[1723396864928,5.32774,2627.8,2627.1,3.497439]
[1723396865337,5.32774,2627.8,2627.1,2.66453]
[1723396865532,2.675,2627.9,2627.0,3.0]
[1723396865732,2.66413,2627.5,2626.9,2.66473]
[1723396865910,2.66413,2627.5,2626.9,3.0]
[1723396866106,2.675,2627.9,2626.6,2.665]
[1723396866310,2.66442,2627.3,2626.6,2.66503]
[1723396866492,5.32882,2627.3,2626.6,2.66497]
[1723396866697,2.66449,2627.2,2626.6,2.66497]
[1723396867143,2.66426,2627.4,2626.8,2.66483]
[1723396867344,3.197101,2627.4,2626.8,2.66483]
[1723396867637,2.66439,2627.3,2626.7,0.07613329]
[1723396867799,5.32882,2627.3,2626.7,0.07613329]
[1723396868002,2.66439,2627.3,2626.7,0.07613329]
[1723396868433,2.66439,2627.3,2626.6,5.32995]
[1723396868635,2.66439,2627.3,2626.7,2.74102157]
[1723396868934,2.66401,2627.7,2627.0,2.66462]
[1723396869133,2.66401,2627.7,2627.1,2.66447]
[1723396869334,2.66401,2627.7,2627.1,2.73933145]
[1723396869543,5.32717,2628.1,2627.2,2.7405386]
[1723396869762,2.66357,2628.1,2627.5,2.66411]
[1723396870126,2.66357,2628.1,2627.6,0.07457458]
[1723396870330,4.169724,2628.1,2627.6,0.07457458]
[1723396870541,7.27,2628.2,2627.7,2.66391]
[1723396870742,7.27,2628.2,2627.7,2.7383983]
[1723396871053,7.27,2628.2,2627.7,0.0744883]
[1723396871538,7.27,2628.2,2627.6,2.7400552]
[1723396871852,9.93344,2628.2,2627.8,0.07440203]
[1723396872050,1.3130624,2628.2,2627.9,0.07431577]
[1723396872251,2.66337,2628.3,2627.9,0.07431577]
[1723396872454,2.66337,2628.3,2627.7,2.66392]
[1723396872756,0.533814,2628.4,2627.8,2.66381]
[1723396872959,5.12754,2628.7,2627.8,2.81427479]
[1723396873149,2.66302,2628.6,2628.0,2.66356]
[1723396873343,2.66317,2628.5,2627.9,0.07431577]
[1723396873567,5.32635,2628.5,2628.1,0.07414326]
[1723396873713,5.32637,2628.5,2628.1,0.07414326]
[1723396873917,2.66317,2628.5,2627.8,2.66375]
[1723396874147,2.66317,2628.5,2627.9,0.266375]
[1723396874467,5.32636,2628.5,2627.9,0.34069077]
[1723396874617,2.66317,2628.5,2627.9,3.00435077]
[1723396875036,2.66317,2628.5,2627.9,0.34069077]
[1723396875286,2.4646,2628.4,2627.9,0.07431577]
[1723396875434,2.6634,2628.3,2627.5,2.66407]
[1723396875637,0.5128,2628.2,2627.4,2.66422]
[1723396875873,2.66372,2627.9,2627.6,0.07457458]
[1723396876097,2.66372,2627.9,2627.5,0.07466086]
[1723396876247,2.66372,2627.9,2627.3,5.28056]
[1723396876570,2.66372,2627.9,2627.4,2.66421]
[1723396876728,2.6636,2628.1,2627.4,2.73895715]
[1723396877132,2.66374,2627.9,2627.4,0.07474715]
[1723396878236,2.66357,2628.1,2627.4,0.07474715]
[1723396878497,2.66357,2628.1,2627.5,2.66403]
[1723396878775,2.66367,2628.0,2627.5,0.07445778]
[1723396879186,2.66367,2628.0,2627.3,2.66427]
[1723396879187,2.66375,2627.9,2627.3,2.66427]
[1723396879367,2.66384,2627.8,2627.3,2.66427]
[1723396879541,2.66384,2627.8,2627.4,0.07454407]
[1723396879949,0.266357,2628.1,2627.6,2.66402]
[1723396880288,2.4646,2628.4,2627.7,0.07432214]
[1723396880289,2.66349,2628.2,2627.7,0.07432214]
[1723396880492,2.66349,2628.2,2627.5,2.66405]
[1723396880663,2.66352,2628.1,2627.5,2.66405]
[1723396880867,2.66349,2628.2,2627.6,0.07440842]
[1723396881386,3.442626,2628.2,2627.6,0.07440842]
[1723396881565,2.66369,2628.0,2627.6,0.07440842]
[1723396881887,2.66369,2628.0,2627.3,2.66426]
[1723396881888,2.66369,2628.0,2627.4,2.66417]
[1723396882197,2.66369,2628.0,2627.7,0.0742883]
[1723396882428,2.66369,2628.0,2627.5,2.66411]
[1723396882628,2.66369,2628.0,2627.8,0.07420203]
[1723396882804,2.66369,2628.0,2627.5,2.66411]
[1723396883003,3.442596,2628.2,2627.9,0.07411576]
[1723396883206,2.66364,2628.0,2627.5,2.66404]
[1723396883726,0.3442596,2628.1,2627.6,0.07436227]
[1723396883939,2.66346,2628.2,2627.6,0.07436227]
[1723396884301,2.66359,2628.1,2627.6,0.07436227]
[1723396885032,2.66341,2628.3,2627.6,0.07436227]
[1723396885332,7.27,2628.5,2627.6,0.07436227]
[1723396885333,7.27,2628.5,2627.9,2.66363]
[1723396885631,7.27,2628.5,2628.0,2.73965396]
[1723396886041,7.27,2628.5,2628.1,0.07387251]
[1723396886817,7.27,2628.5,2628.1,2.73738251]
[1723396887137,7.27,2628.5,2628.1,0.07387251]
[1723396888744,7.27,2628.5,2628.1,0.14996434]
[1723396889106,7.27,2628.5,2628.1,2.81345434]
[1723396889305,2.66301,2628.6,2628.1,2.81345434]
[1723396889526,3.38994,2628.7,2628.2,2.6634]
[1723396889804,7.27,2629.0,2628.4,2.6632]
[1723396889805,9.93266,2629.0,2628.4,2.6632]
[1723396889963,2.66266,2629.0,2628.5,2.66307]
[1723396890108,2.66266,2629.0,2628.4,2.66321]
[1723396890309,2.66251,2629.1,2628.5,2.73650221]
[1723396890617,2.66266,2629.0,2628.5,0.07347221]
[1723396890955,5.591616,2629.0,2628.4,2.6632]
[1723396891246,2.66271,2628.9,2628.6,0.07321066]
[1723396891444,2.928926,2629.0,2628.5,0.07329687]
[1723396891445,5.32602,2628.6,2628.5,0.07329687]
[1723396891751,2.66322,2628.4,2627.9,2.66372]
[1723396892421,2.66317,2628.5,2627.9,2.66372]
[1723396892865,2.66317,2628.5,2626.9,2.4509]
[1723396892866,2.5182,2628.5,2626.9,2.4509]
[1723396893162,2.5182,2628.5,2626.6,0.266497]
[1723396893163,2.66413,2627.5,2626.6,0.266497]
[1723396893310,2.66433,2627.3,2626.7,2.66486]
[1723396893754,2.66433,2627.3,2626.6,2.4509]
[1723396893949,5.32894,2627.2,2626.5,2.66512]
[1723396894111,2.66443,2627.2,2626.5,2.66512]
[1723396894455,2.5182,2627.7,2626.7,2.4509]
[1723396894646,9.93388,2627.8,2626.8,0.0761164]
[1723396894943,9.93388,2627.8,2627.0,2.66456]
[1723396895146,2.66399,2627.7,2627.0,5.32912]
[1723396895345,2.66403,2627.6,2627.0,2.66456]
[1723396895661,12.59778,2627.8,2627.0,2.66456]
[1723396895834,2.66434,2627.3,2626.7,2.66486]
[1723396897243,2.66454,2627.1,2626.5,5.11602]
[1723396897460,2.66454,2627.1,2626.5,6.58798113]
[1723396897751,2.66462,2627.1,2626.5,1.47196113]
[1723396897951,3.923871,2627.6,2626.3,3.93844131]
[1723396897952,2.66521,2626.5,2626.3,3.93844131]
[1723396898121,2.6651,2626.6,2626.3,3.93844131]
[1723396898320,0.518286,2626.9,2626.3,3.93844131]
[1723396898520,2.665,2626.7,2626.3,3.93844131]
[1723396899543,2.66504,2626.6,2626.3,3.93844131]
[1723396900522,2.665,2626.7,2626.3,3.93844131]
[1723396901021,2.66514,2626.5,2626.4,0.07049852]
[1723396901253,2.66502,2626.7,2626.4,0.07049852]
[1723396901634,2.66479,2626.9,2626.4,0.07049852]
[1723396902156,2.66479,2626.9,2626.4,2.73573852]